[Event "*** SCC Grand Prix: Titled Tuesday Blitz"]
[Site "Chess.com"]
[Date "2020.08.25"]
[Round "1"]
[White "GMHess"]
[Black "bsnsun"]
[Result "1-0"]
[WhiteElo "2801"]
[BlackElo "2406"]
[TimeControl "180+1"]
[EndTime "10:08:18 PDT"]
[Termination "GMHess won by resignation"]

1. e4 {[%clk 0:03:00.4]} 1... c5 {[%clk 0:02:44]} 2. Nc3 {[%clk 0:02:59.7]} 2...
Nc6 {[%clk 0:02:43.5]} 3. Bb5 {[%clk 0:02:59.7]} 3... Nd4 {[%clk 0:02:42.9]} 4.
Bc4 {[%clk 0:03:00.3]} 4... g6 {[%clk 0:02:39.3]} 5. Nf3 {[%clk 0:03:00.3]} 5...
Bg7 {[%clk 0:02:39.2]} 6. Nxd4 {[%clk 0:03:00.1]} 6... cxd4 {[%clk 0:02:39.6]}
7. Qf3 {[%clk 0:03:00.8]} 7... f5 {[%clk 0:02:39.5]} 8. Ne2 {[%clk 0:02:18.9]}
8... Qa5 {[%clk 0:02:38.8]} 9. O-O {[%clk 0:02:13.4]} 9... e6 {[%clk 0:02:35.2]}
10. d3 {[%clk 0:02:07]} 10... Ne7 {[%clk 0:02:35.2]} 11. exf5 {[%clk 0:01:35.8]}
11... Qxf5 {[%clk 0:02:34.8]} 12. Qxf5 {[%clk 0:01:21.9]} 12... Nxf5 {[%clk
0:02:33.1]} 13. Ng3 {[%clk 0:01:19.1]} 13... O-O {[%clk 0:02:32.1]} 14. Nxf5
{[%clk 0:01:16.4]} 14... Rxf5 {[%clk 0:02:32.5]} 15. f4 {[%clk 0:01:16.6]} 15...
b6 {[%clk 0:02:32.2]} 16. g4 {[%clk 0:01:15.2]} 16... Rf8 {[%clk 0:02:31.6]} 17.
f5 {[%clk 0:01:12.5]} 17... gxf5 {[%clk 0:02:28.4]} 18. gxf5 {[%clk 0:01:13.4]}
18... Kh8 {[%clk 0:02:26]} 19. Bd2 {[%clk 0:00:43.2]} 19... Bb7 {[%clk
0:01:48.9]} 20. fxe6 {[%clk 0:00:30.9]} 20... dxe6 {[%clk 0:01:49]} 21. Bxe6
{[%clk 0:00:15.9]} 21... Rae8 {[%clk 0:01:49.5]} 22. Rae1 {[%clk 0:00:15.6]}
22... Rxf1+ {[%clk 0:01:37.2]} 23. Kxf1 {[%clk 0:00:16.5]} 23... Bf6 {[%clk
0:01:37.9]} 24. Bb3 {[%clk 0:00:05.9]} 24... Rf8 {[%clk 0:01:38.3]} 25. Kg1
{[%clk 0:00:06.3]} 25... Bh4 {[%clk 0:01:36.8]} 26. Rf1 {[%clk 0:00:05.5]} 26...
Re8 {[%clk 0:01:33.9]} 27. Rf4 {[%clk 0:00:04.8]} 27... Bg5 {[%clk 0:01:32.5]}
28. Rf2 {[%clk 0:00:05]} 28... Bh4 {[%clk 0:01:19.2]} 29. Rf7 {[%clk 0:00:02.7]}
29... Ba8 {[%clk 0:01:18.3]} 30. Rf4 {[%clk 0:00:02.3]} 30... Bg5 {[%clk
0:01:18.1]} 31. Rf2 {[%clk 0:00:02.6]} 31... Bh4 {[%clk 0:01:18.5]} 32. Rf4
{[%clk 0:00:02.9]} 32... Bg5 {[%clk 0:01:00]} 33. Rf2 {[%clk 0:00:03.2]} 33...
Bh4 {[%clk 0:00:49.9]} 34. Rf5 {[%clk 0:00:03.1]} 34... a5 {[%clk 0:00:45.2]}
35. Bd5 {[%clk 0:00:03.3]} 35... Bxd5 {[%clk 0:00:42]} 36. Rxd5 {[%clk
0:00:04.2]} 36... Re2 {[%clk 0:00:42.8]} 37. Bh6 {[%clk 0:00:03.2]} 37... Kg8
{[%clk 0:00:40.7]} 38. Rh5 {[%clk 0:00:02.5]} 38... Bf6 {[%clk 0:00:40.3]} 39.
Rf5 {[%clk 0:00:02.6]} 39... Be7 {[%clk 0:00:34.2]} 40. Rf2 {[%clk 0:00:02.7]}
40... Re6 {[%clk 0:00:32.4]} 41. Bf4 {[%clk 0:00:02.1]} 41... a4 {[%clk
0:00:32.5]} 42. Kg2 {[%clk 0:00:02.3]} 42... b5 {[%clk 0:00:32.6]} 43. a3 {[%clk
0:00:02.6]} 43... Bh4 {[%clk 0:00:32.6]} 44. Bg3 {[%clk 0:00:02.6]} 44... Bg5
{[%clk 0:00:31.7]} 45. Kf3 {[%clk 0:00:02.2]} 45... Be3 {[%clk 0:00:32]} 46. Re2
{[%clk 0:00:02.5]} 46... Rf6+ {[%clk 0:00:32.6]} 47. Ke4 {[%clk 0:00:03.1]}
47... Kf7 {[%clk 0:00:31.2]} 48. Kd5 {[%clk 0:00:03.5]} 48... Rf5+ {[%clk
0:00:31.6]} 49. Kc6 {[%clk 0:00:03.8]} 49... Ke6 {[%clk 0:00:30.7]} 50. c3
{[%clk 0:00:03.9]} 50... Kf7 {[%clk 0:00:28.8]} 51. cxd4 {[%clk 0:00:04.3]}
51... Bxd4 {[%clk 0:00:29.2]} 52. Bd6 {[%clk 0:00:04.9]} 52... Kf6 {[%clk
0:00:28]} 53. Be7+ {[%clk 0:00:04.8]} 53... Kf7 {[%clk 0:00:28.1]} 54. Bb4
{[%clk 0:00:05.5]} 54... Kf6 {[%clk 0:00:28.1]} 55. Bc3 {[%clk 0:00:05.8]} 55...
Rc5+ {[%clk 0:00:26.6]} 56. Kd6 {[%clk 0:00:06]} 56... Rxc3 {[%clk 0:00:17.4]}
57. bxc3 {[%clk 0:00:06]} 57... Bxc3 {[%clk 0:00:18.3]} 58. Kc5 {[%clk
0:00:06.5]} 58... b4 {[%clk 0:00:17.8]} 59. axb4 {[%clk 0:00:07.4]} 59... a3
{[%clk 0:00:18.5]} 60. Ra2 {[%clk 0:00:07.5]} 60... Bb2 {[%clk 0:00:18.9]} 61.
b5 {[%clk 0:00:08]} 61... Ke5 {[%clk 0:00:19.4]} 62. b6 {[%clk 0:00:08.4]} 62...
Ke6 {[%clk 0:00:19.8]} 63. b7 {[%clk 0:00:08.6]} 1-0

[Event "*** SCC Grand Prix: Titled Tuesday Blitz"]
[Site "Chess.com"]
[Date "2020.08.25"]
[Round "1"]
[White "TokChess"]
[Black "Sanan_Sjugirov"]
[Result "0-1"]
[WhiteElo "2427"]
[BlackElo "2871"]
[TimeControl "180+1"]
[EndTime "10:08:21 PDT"]
[Termination "Sanan_Sjugirov won by resignation"]

1. Nf3 {[%clk 0:02:56.1]} 1... d5 {[%clk 0:02:58.9]} 2. g3 {[%clk 0:02:55.9]}
2... Bg4 {[%clk 0:02:58.3]} 3. Bg2 {[%clk 0:02:52.8]} 3... c6 {[%clk 0:02:57.5]}
4. d4 {[%clk 0:02:52]} 4... e6 {[%clk 0:02:56.9]} 5. O-O {[%clk 0:02:51.9]} 5...
Nf6 {[%clk 0:02:39.9]} 6. Nbd2 {[%clk 0:02:50.2]} 6... Be7 {[%clk 0:02:38.9]} 7.
Re1 {[%clk 0:02:50.3]} 7... O-O {[%clk 0:02:38.3]} 8. e4 {[%clk 0:02:50]} 8...
Bh5 {[%clk 0:02:37.8]} 9. c3 {[%clk 0:02:47.7]} 9... a5 {[%clk 0:02:34.8]} 10.
a4 {[%clk 0:02:43.8]} 10... Qb6 {[%clk 0:02:25.5]} 11. e5 {[%clk 0:02:28.6]}
11... Nfd7 {[%clk 0:02:25]} 12. Nb3 {[%clk 0:02:24.2]} 12... c5 {[%clk
0:02:22.4]} 13. dxc5 {[%clk 0:02:14.7]} 13... Nxc5 {[%clk 0:02:23.3]} 14. Nbd4
{[%clk 0:02:10.3]} 14... Nc6 {[%clk 0:02:16.5]} 15. Nb5 {[%clk 0:02:06]} 15...
Ne4 {[%clk 0:02:13.1]} 16. Be3 {[%clk 0:02:04.8]} 16... Bc5 {[%clk 0:02:13.1]}
17. Bxc5 {[%clk 0:02:04.7]} 17... Qxc5 {[%clk 0:02:14]} 18. Nbd4 {[%clk
0:01:57.8]} 18... Nxe5 {[%clk 0:02:08.5]} 19. Qc2 {[%clk 0:01:44.3]} 19... Ng4
{[%clk 0:01:52]} 20. Rf1 {[%clk 0:01:40.3]} 20... Rac8 {[%clk 0:01:20.6]} 21.
Rae1 {[%clk 0:01:32.8]} 21... Qb6 {[%clk 0:01:14.2]} 22. Qb3 {[%clk 0:01:26.3]}
22... Qxb3 {[%clk 0:01:10.6]} 23. Nxb3 {[%clk 0:01:26.3]} 23... b6 {[%clk
0:01:07.9]} 24. h3 {[%clk 0:01:21.2]} 24... Ngf6 {[%clk 0:01:07.9]} 25. g4
{[%clk 0:01:17.8]} 25... Bg6 {[%clk 0:01:07.8]} 26. Ne5 {[%clk 0:01:15.8]} 26...
Rfd8 {[%clk 0:01:03.6]} 27. Re3 {[%clk 0:01:11.7]} 27... Nc5 {[%clk 0:01:00.4]}
28. Nxc5 {[%clk 0:01:06.3]} 28... bxc5 {[%clk 0:01:00.7]} 29. Nxg6 {[%clk
0:01:04.7]} 29... hxg6 {[%clk 0:01:00.2]} 30. f4 {[%clk 0:01:03]} 30... Rb8
{[%clk 0:00:58.6]} 31. Rf2 {[%clk 0:01:03.5]} 31... c4 {[%clk 0:00:55.8]} 32. f5
{[%clk 0:01:00.4]} 32... exf5 {[%clk 0:00:52.2]} 33. gxf5 {[%clk 0:01:00.4]}
33... gxf5 {[%clk 0:00:52.8]} 34. Re5 {[%clk 0:00:56.9]} 34... g6 {[%clk
0:00:51.5]} 35. Rd2 {[%clk 0:00:51]} 35... Rb6 {[%clk 0:00:49.1]} 36. Re7 {[%clk
0:00:46.7]} 36... Rdb8 {[%clk 0:00:46.2]} 37. Bxd5 {[%clk 0:00:41.5]} 37... Nxd5
{[%clk 0:00:41.5]} 38. Rxd5 {[%clk 0:00:42]} 38... Rxb2 {[%clk 0:00:41.2]} 39.
Ree5 {[%clk 0:00:27.6]} 39... Rc2 {[%clk 0:00:27.6]} 40. Rb5 {[%clk 0:00:22.8]}
40... Rxb5 {[%clk 0:00:26.6]} 41. Rxb5 {[%clk 0:00:17.2]} 41... Rxc3 {[%clk
0:00:26.8]} 42. Kg2 {[%clk 0:00:17.2]} 42... Ra3 {[%clk 0:00:21.2]} 43. Rxa5
{[%clk 0:00:17]} 43... Kg7 {[%clk 0:00:20.5]} 44. Ra7 {[%clk 0:00:15.6]} 44...
c3 {[%clk 0:00:18]} 45. Rc7 {[%clk 0:00:14.9]} 45... Ra2+ {[%clk 0:00:15.3]} 46.
Kg3 {[%clk 0:00:14.4]} 46... c2 {[%clk 0:00:16]} 47. a5 {[%clk 0:00:14.8]} 47...
Rxa5 {[%clk 0:00:14.2]} 48. Rxc2 {[%clk 0:00:14.2]} 48... Ra3+ {[%clk
0:00:14.2]} 49. Kg2 {[%clk 0:00:14.4]} 49... Kh6 {[%clk 0:00:14.3]} 50. Rc4
{[%clk 0:00:14.3]} 50... Kg5 {[%clk 0:00:13.6]} 51. Rb4 {[%clk 0:00:14.5]} 51...
Re3 {[%clk 0:00:13.1]} 52. Rc4 {[%clk 0:00:14.7]} 52... Re4 {[%clk 0:00:13.1]}
53. Rc5 {[%clk 0:00:14.8]} 53... Kh4 {[%clk 0:00:12.3]} 54. Rc3 {[%clk
0:00:12.7]} 54... Re2+ {[%clk 0:00:11.2]} 55. Kf1 {[%clk 0:00:12.5]} 55... Ra2
{[%clk 0:00:11]} 56. Rc7 {[%clk 0:00:13.4]} 56... Kxh3 {[%clk 0:00:10.2]} 57.
Rxf7 {[%clk 0:00:13.3]} 57... Kg4 {[%clk 0:00:09.5]} 58. Rg7 {[%clk 0:00:13.5]}
58... g5 {[%clk 0:00:09.8]} 59. Rb7 {[%clk 0:00:14]} 59... f4 {[%clk 0:00:09.3]}
60. Rb4 {[%clk 0:00:13.9]} 60... Kg3 {[%clk 0:00:08.6]} 61. Rb3+ {[%clk
0:00:14]} 61... f3 {[%clk 0:00:08.8]} 62. Rb8 {[%clk 0:00:14.9]} 62... Ra1+
{[%clk 0:00:08.6]} 0-1

[Event "*** SCC Grand Prix: Titled Tuesday Blitz"]
[Site "Chess.com"]
[Date "2020.08.25"]
[Round "1"]
[White "Kotofeyca"]
[Black "LikeWater"]
[Result "1-0"]
[WhiteElo "2319"]
[BlackElo "2622"]
[TimeControl "180+1"]
[EndTime "10:08:23 PDT"]
[Termination "Kotofeyca won on time"]

1. d4 {[%clk 0:01:49.6]} 1... Nf6 {[%clk 0:02:58.6]} 2. c4 {[%clk 0:01:49.3]}
2... e6 {[%clk 0:02:58.3]} 3. Nf3 {[%clk 0:01:47.6]} 3... c5 {[%clk 0:02:57.8]}
4. Nc3 {[%clk 0:01:47.2]} 4... cxd4 {[%clk 0:02:47.4]} 5. Nxd4 {[%clk
0:01:48.1]} 5... Bb4 {[%clk 0:02:47.9]} 6. g3 {[%clk 0:01:48]} 6... O-O {[%clk
0:02:44.6]} 7. Bg2 {[%clk 0:01:47.8]} 7... Qc7 {[%clk 0:02:44.2]} 8. Qb3 {[%clk
0:01:40]} 8... Na6 {[%clk 0:02:36.4]} 9. O-O {[%clk 0:01:35.3]} 9... Qa5 {[%clk
0:02:23]} 10. Bd2 {[%clk 0:01:28.8]} 10... Qh5 {[%clk 0:02:07.7]} 11. a3 {[%clk
0:01:21.9]} 11... Bxc3 {[%clk 0:02:07.4]} 12. Bxc3 {[%clk 0:01:20.6]} 12... d5
{[%clk 0:02:07]} 13. cxd5 {[%clk 0:01:07.9]} 13... exd5 {[%clk 0:02:07.2]} 14.
Rfd1 {[%clk 0:00:57.5]} 14... Nc5 {[%clk 0:02:06.5]} 15. Qc2 {[%clk 0:00:56.7]}
15... Nce4 {[%clk 0:02:06.8]} 16. Be1 {[%clk 0:00:52.9]} 16... Bh3 {[%clk
0:02:05]} 17. f3 {[%clk 0:00:51.7]} 17... Ng5 {[%clk 0:01:44.6]} 18. Bxh3 {[%clk
0:00:46.5]} 18... Qxh3 {[%clk 0:01:36.9]} 19. Qf5 {[%clk 0:00:47]} 19... Qh5
{[%clk 0:01:02.2]} 20. Bd2 {[%clk 0:00:45]} 20... Ne6 {[%clk 0:00:57]} 21. Qxh5
{[%clk 0:00:38.9]} 21... Nxh5 {[%clk 0:00:57.9]} 22. Bc3 {[%clk 0:00:37]} 22...
Rfd8 {[%clk 0:00:57.7]} 23. Nf5 {[%clk 0:00:35.9]} 23... Kf8 {[%clk 0:00:46.8]}
24. Bb4+ {[%clk 0:00:27.8]} 24... Kg8 {[%clk 0:00:39]} 25. Rxd5 {[%clk
0:00:27.3]} 25... Nf6 {[%clk 0:00:33.7]} 26. Rxd8+ {[%clk 0:00:22.5]} 26... Rxd8
{[%clk 0:00:34.6]} 27. Kf2 {[%clk 0:00:21]} 27... h5 {[%clk 0:00:34.6]} 28. Ke1
{[%clk 0:00:20]} 28... Kh7 {[%clk 0:00:32.4]} 29. Rd1 {[%clk 0:00:18.8]} 29...
Rc8 {[%clk 0:00:32.5]} 30. Bc3 {[%clk 0:00:18]} 30... Ne8 {[%clk 0:00:29.5]} 31.
Rd7 {[%clk 0:00:15.5]} 31... Nc5 {[%clk 0:00:26.1]} 32. Rxf7 {[%clk 0:00:14.2]}
32... Kg6 {[%clk 0:00:26.2]} 33. Rf8 {[%clk 0:00:12]} 33... Rd8 {[%clk
0:00:19.5]} 34. Nxg7 {[%clk 0:00:11.1]} 34... Nxg7 {[%clk 0:00:03.8]} 35. Rxd8
{[%clk 0:00:12]} 35... Nge6 {[%clk 0:00:04.2]} 36. Rd6 {[%clk 0:00:12.3]} 36...
Kf5 {[%clk 0:00:02.8]} 37. Bb4 {[%clk 0:00:12.7]} 37... Nb3 {[%clk 0:00:02]} 38.
Rd7 {[%clk 0:00:12.1]} 38... b6 {[%clk 0:00:01.3]} 39. Rxa7 {[%clk 0:00:11.8]}
39... Ned4 {[%clk 0:00:01.3]} 40. Bc3 {[%clk 0:00:11.9]} 40... Nc2+ {[%clk
0:00:01.4]} 41. Kf2 {[%clk 0:00:11.2]} 41... Nc5 {[%clk 0:00:01.7]} 42. Rc7
{[%clk 0:00:11.1]} 42... Kg5 {[%clk 0:00:01.9]} 43. Bd2+ {[%clk 0:00:10.6]}
43... Kf5 {[%clk 0:00:02]} 44. Be3 {[%clk 0:00:11.2]} 44... Nb3 {[%clk 0:00:02]}
45. Rc6 {[%clk 0:00:10.9]} 45... b5 {[%clk 0:00:01.9]} 46. Rb6 {[%clk
0:00:10.9]} 46... b4 {[%clk 0:00:02.5]} 47. Rxb4 {[%clk 0:00:10.6]} 47... Nxb4
{[%clk 0:00:02.3]} 48. axb4 {[%clk 0:00:11.5]} 48... Ke5 {[%clk 0:00:02.9]} 49.
Bc5 {[%clk 0:00:12.1]} 49... Kd5 {[%clk 0:00:03.3]} 50. h4 {[%clk 0:00:11.7]}
50... Nc1 {[%clk 0:00:03.1]} 51. g4 {[%clk 0:00:12]} 51... hxg4 {[%clk
0:00:02.9]} 52. fxg4 {[%clk 0:00:12.9]} 52... Nb3 {[%clk 0:00:02.8]} 53. Kf3
{[%clk 0:00:13.2]} 53... Kc4 {[%clk 0:00:03]} 54. h5 {[%clk 0:00:13.7]} 54...
Nd2+ {[%clk 0:00:03.6]} 55. Kf4 {[%clk 0:00:13.2]} 55... Kb5 {[%clk 0:00:03.8]}
56. h6 {[%clk 0:00:13.7]} 56... Nc4 {[%clk 0:00:04.7]} 57. h7 {[%clk 0:00:13.9]}
57... Nxb2 {[%clk 0:00:05.2]} 58. h8=Q {[%clk 0:00:14.3]} 58... Nc4 {[%clk
0:00:06.1]} 59. Qe8+ {[%clk 0:00:14.3]} 1-0

[Event "*** SCC Grand Prix: Titled Tuesday Blitz"]
[Site "Chess.com"]
[Date "2020.08.25"]
[Round "1"]
[White "ShahMatKanal"]
[Black "NMZanette"]
[Result "1-0"]
[WhiteElo "2502"]
[BlackElo "2118"]
[TimeControl "180+1"]
[EndTime "10:08:23 PDT"]
[Termination "ShahMatKanal won by resignation"]

1. e4 {[%clk 0:02:59.1]} 1... e5 {[%clk 0:02:58.9]} 2. Nf3 {[%clk 0:02:58.6]}
2... Nc6 {[%clk 0:02:56.9]} 3. Bc4 {[%clk 0:02:57.7]} 3... Nf6 {[%clk
0:02:56.3]} 4. d3 {[%clk 0:02:52.3]} 4... Be7 {[%clk 0:02:54.9]} 5. O-O {[%clk
0:02:51.6]} 5... O-O {[%clk 0:02:54.4]} 6. Re1 {[%clk 0:02:49.4]} 6... d6 {[%clk
0:02:53.1]} 7. a3 {[%clk 0:02:42.7]} 7... Be6 {[%clk 0:02:52.1]} 8. Nbd2 {[%clk
0:02:39.2]} 8... Bxc4 {[%clk 0:02:51.6]} 9. Nxc4 {[%clk 0:02:37.7]} 9... Re8
{[%clk 0:02:49.1]} 10. Bg5 {[%clk 0:02:29.6]} 10... h6 {[%clk 0:02:47.4]} 11.
Bxf6 {[%clk 0:02:27.9]} 11... Bxf6 {[%clk 0:02:47]} 12. Ne3 {[%clk 0:02:28.2]}
12... g6 {[%clk 0:02:47.2]} 13. Qd2 {[%clk 0:02:25.6]} 13... Bg7 {[%clk
0:02:47.1]} 14. b4 {[%clk 0:02:22.5]} 14... Kh7 {[%clk 0:02:45.6]} 15. b5 {[%clk
0:02:10.2]} 15... Ne7 {[%clk 0:02:44]} 16. c4 {[%clk 0:02:07.5]} 16... b6 {[%clk
0:02:38.8]} 17. a4 {[%clk 0:01:58.2]} 17... a5 {[%clk 0:02:38.3]} 18. Nd5 {[%clk
0:01:40.6]} 18... f5 {[%clk 0:02:26.7]} 19. Ra3 {[%clk 0:01:28.3]} 19... Qd7
{[%clk 0:02:04.7]} 20. Rc1 {[%clk 0:01:16.1]} 20... Rf8 {[%clk 0:01:46.7]} 21.
Ne1 {[%clk 0:01:10.5]} 21... Rf7 {[%clk 0:01:45.1]} 22. Nc2 {[%clk 0:01:06.3]}
22... h5 {[%clk 0:01:40.9]} 23. Rf1 {[%clk 0:01:01.9]} 23... Bh6 {[%clk
0:01:39.7]} 24. Qe2 {[%clk 0:01:01.2]} 24... Raf8 {[%clk 0:01:35.3]} 25. f3
{[%clk 0:00:52.1]} 25... Ng8 {[%clk 0:01:32]} 26. Nce3 {[%clk 0:00:50]} 26...
Bxe3+ {[%clk 0:01:31.4]} 27. Qxe3 {[%clk 0:00:48]} 27... f4 {[%clk 0:01:31.4]}
28. Qf2 {[%clk 0:00:45.4]} 28... g5 {[%clk 0:01:28.3]} 29. d4 {[%clk 0:00:43.6]}
29... Qe6 {[%clk 0:01:22.1]} 30. Rd1 {[%clk 0:00:37.8]} 30... exd4 {[%clk
0:01:21.6]} 31. Qxd4 {[%clk 0:00:37.3]} 31... Nf6 {[%clk 0:01:12.2]} 32. Ra2
{[%clk 0:00:33.6]} 32... Nxd5 {[%clk 0:01:03.7]} 33. cxd5 {[%clk 0:00:33.2]}
33... Qg6 {[%clk 0:00:59.9]} 34. h3 {[%clk 0:00:31]} 34... g4 {[%clk 0:01:00]}
35. hxg4 {[%clk 0:00:31.9]} 35... hxg4 {[%clk 0:01:00.3]} 36. Kf1 {[%clk
0:00:26.7]} 36... g3 {[%clk 0:00:57.7]} 37. Ke2 {[%clk 0:00:25.3]} 37... Qf6
{[%clk 0:00:54.8]} 38. Rh1+ {[%clk 0:00:17.5]} 38... Kg6 {[%clk 0:00:54.8]} 39.
Qxf6+ {[%clk 0:00:15.8]} 39... Rxf6 {[%clk 0:00:55.2]} 40. Rc2 {[%clk
0:00:13.5]} 40... R6f7 {[%clk 0:00:53.2]} 41. Kd3 {[%clk 0:00:10.4]} 41... Re8
{[%clk 0:00:50.2]} 42. Rh4 {[%clk 0:00:09.6]} 42... Rf6 {[%clk 0:00:42.2]} 43.
Rxc7 {[%clk 0:00:08.3]} 43... Re5 {[%clk 0:00:29.9]} 44. Rch7 {[%clk 0:00:07.7]}
44... Rf7 {[%clk 0:00:16.8]} 45. R4h6+ {[%clk 0:00:07]} 45... Kg5 {[%clk
0:00:16.1]} 46. Rh5+ {[%clk 0:00:07.3]} 46... Kf6 {[%clk 0:00:16.3]} 47. R7h6+
{[%clk 0:00:06.2]} 47... Ke7 {[%clk 0:00:16.4]} 48. Rxe5+ {[%clk 0:00:06.4]}
48... dxe5 {[%clk 0:00:17.3]} 49. Re6+ {[%clk 0:00:06.6]} 49... Kd7 {[%clk
0:00:17.3]} 50. Rxe5 {[%clk 0:00:07.5]} 50... Rh7 {[%clk 0:00:17.6]} 51. Rf5
{[%clk 0:00:05.7]} 51... Rh2 {[%clk 0:00:18.1]} 52. Rxf4 {[%clk 0:00:06]} 52...
Rxg2 {[%clk 0:00:19]} 53. Rg4 {[%clk 0:00:06.3]} 53... Rg1 {[%clk 0:00:18.9]}
54. Ke3 {[%clk 0:00:04.5]} 54... Ra1 {[%clk 0:00:18.4]} 55. Rxg3 {[%clk
0:00:04.1]} 55... Rxa4 {[%clk 0:00:19.1]} 56. Rg7+ {[%clk 0:00:04.4]} 56... Kd6
{[%clk 0:00:19]} 57. Rg6+ {[%clk 0:00:04.8]} 57... Kc5 {[%clk 0:00:18.9]} 58. d6
{[%clk 0:00:05]} 58... Ra3+ {[%clk 0:00:18.4]} 59. Kf4 {[%clk 0:00:05.1]} 59...
Rd3 {[%clk 0:00:19.1]} 60. e5 {[%clk 0:00:05]} 60... a4 {[%clk 0:00:19.5]} 61.
Rg2 {[%clk 0:00:04.7]} 61... a3 {[%clk 0:00:18.9]} 62. Ke4 {[%clk 0:00:04.7]}
62... Kxb5 {[%clk 0:00:19.6]} 63. Kxd3 {[%clk 0:00:04.5]} 63... Kb4 {[%clk
0:00:19.8]} 64. d7 {[%clk 0:00:04.5]} 1-0

[Event "*** SCC Grand Prix: Titled Tuesday Blitz"]
[Site "Chess.com"]
[Date "2020.08.25"]
[Round "1"]
[White "timator"]
[Black "rdclayton"]
[Result "1-0"]
[WhiteElo "2678"]
[BlackElo "2347"]
[TimeControl "180+1"]
[EndTime "10:08:26 PDT"]
[Termination "timator won on time"]

1. Nf3 {[%clk 0:01:51.2]} 1... d5 {[%clk 0:02:57.8]} 2. b3 {[%clk 0:01:50.1]}
2... c5 {[%clk 0:02:39.5]} 3. e3 {[%clk 0:01:43]} 3... Nc6 {[%clk 0:02:35.4]} 4.
Bb2 {[%clk 0:01:43]} 4... Bg4 {[%clk 0:02:33.2]} 5. h3 {[%clk 0:01:39.2]} 5...
Bxf3 {[%clk 0:02:31.5]} 6. Qxf3 {[%clk 0:01:38.8]} 6... e5 {[%clk 0:02:31.3]} 7.
g4 {[%clk 0:01:36.9]} 7... Nf6 {[%clk 0:02:20.4]} 8. d3 {[%clk 0:01:33.6]} 8...
h6 {[%clk 0:02:19.2]} 9. Nd2 {[%clk 0:01:32]} 9... Be7 {[%clk 0:02:18.8]} 10.
Bg2 {[%clk 0:01:31.6]} 10... Qd7 {[%clk 0:02:16.8]} 11. O-O {[%clk 0:01:30.7]}
11... O-O {[%clk 0:02:16]} 12. c4 {[%clk 0:01:26.5]} 12... d4 {[%clk 0:02:13]}
13. Ne4 {[%clk 0:01:23.7]} 13... Rad8 {[%clk 0:01:51]} 14. Nxf6+ {[%clk
0:01:08.5]} 14... Bxf6 {[%clk 0:01:51.9]} 15. Rad1 {[%clk 0:01:07.1]} 15... Rfe8
{[%clk 0:01:40.2]} 16. Rfe1 {[%clk 0:01:02.1]} 16... Re7 {[%clk 0:01:38.3]} 17.
Ba3 {[%clk 0:00:55.2]} 17... Nb4 {[%clk 0:01:24.6]} 18. Bxb4 {[%clk 0:00:50]}
18... cxb4 {[%clk 0:01:25.5]} 19. Qd5 {[%clk 0:00:44.8]} 19... Qc7 {[%clk
0:01:23.8]} 20. Qb5 {[%clk 0:00:44.1]} 20... a5 {[%clk 0:01:20.1]} 21. exd4
{[%clk 0:00:37.3]} 21... Rxd4 {[%clk 0:01:10.4]} 22. Re4 {[%clk 0:00:36.8]}
22... b6 {[%clk 0:01:00]} 23. Rxd4 {[%clk 0:00:16.9]} 23... exd4 {[%clk
0:00:59.5]} 24. Kf1 {[%clk 0:00:15.7]} 24... Qf4 {[%clk 0:00:46.8]} 25. Qd5
{[%clk 0:00:10.4]} 25... Bh4 {[%clk 0:00:35]} 26. Qf3 {[%clk 0:00:06.6]} 26...
Qe5 {[%clk 0:00:35.2]} 27. Qa8+ {[%clk 0:00:06.3]} 27... Re8 {[%clk 0:00:32]}
28. Qe4 {[%clk 0:00:06.3]} 28... Qxe4 {[%clk 0:00:22.4]} 29. Bxe4 {[%clk
0:00:07.2]} 29... g6 {[%clk 0:00:20.5]} 30. Bd5 {[%clk 0:00:07]} 30... Kg7
{[%clk 0:00:19.9]} 31. Rc1 {[%clk 0:00:06]} 31... Rc8 {[%clk 0:00:12.9]} 32. Re1
{[%clk 0:00:05.4]} 32... Kf6 {[%clk 0:00:10]} 33. Re4 {[%clk 0:00:05.3]} 33...
Rc7 {[%clk 0:00:08.1]} 34. Rxd4 {[%clk 0:00:05.2]} 34... Re7 {[%clk 0:00:08.1]}
35. Rf4+ {[%clk 0:00:05.2]} 35... Kg7 {[%clk 0:00:06.5]} 36. Be4 {[%clk
0:00:04.5]} 36... Bf6 {[%clk 0:00:06]} 37. Rf3 {[%clk 0:00:04.5]} 37... Bd4
{[%clk 0:00:05.7]} 38. Ke2 {[%clk 0:00:05]} 38... h5 {[%clk 0:00:04.2]} 39. gxh5
{[%clk 0:00:05]} 39... f5 {[%clk 0:00:03.9]} 40. hxg6 {[%clk 0:00:04.5]} 40...
fxe4 {[%clk 0:00:04]} 41. dxe4 {[%clk 0:00:05.1]} 41... Rxe4+ {[%clk 0:00:04]}
42. Kd3 {[%clk 0:00:05.6]} 42... Rh4 {[%clk 0:00:03.3]} 43. Rf7+ {[%clk
0:00:01.5]} 43... Kxg6 {[%clk 0:00:02.3]} 44. Rf3 {[%clk 0:00:02.4]} 44... Bc5
{[%clk 0:00:02.4]} 45. Rg3+ {[%clk 0:00:02.9]} 45... Kf6 {[%clk 0:00:01.8]} 46.
Rf3+ {[%clk 0:00:03.8]} 46... Ke6 {[%clk 0:00:01.9]} 47. Rg3 {[%clk 0:00:04]}
47... Rd4+ {[%clk 0:00:01.8]} 48. Ke2 {[%clk 0:00:04]} 48... Rf4 {[%clk
0:00:02.2]} 49. f3 {[%clk 0:00:03.8]} 49... Rf6 {[%clk 0:00:01.6]} 50. Rg5
{[%clk 0:00:04]} 50... Rf5 {[%clk 0:00:01.5]} 51. Rg4 {[%clk 0:00:04.5]} 51...
Rf6 {[%clk 0:00:01.7]} 52. Rg5 {[%clk 0:00:04.1]} 52... Rf5 {[%clk 0:00:01.7]}
53. Rg4 {[%clk 0:00:04.5]} 53... Rh5 {[%clk 0:00:02.3]} 54. h4 {[%clk
0:00:04.7]} 54... Ke5 {[%clk 0:00:02.8]} 55. Kd3 {[%clk 0:00:04.3]} 55... Kd6
{[%clk 0:00:02.4]} 56. Ke4 {[%clk 0:00:04.2]} 56... Re5+ {[%clk 0:00:01.8]} 57.
Kf4 {[%clk 0:00:04.7]} 57... Re2 {[%clk 0:00:01.8]} 58. Rg6+ {[%clk 0:00:05.2]}
58... Ke7 {[%clk 0:00:01.5]} 59. h5 {[%clk 0:00:06.1]} 59... Rxa2 {[%clk
0:00:01.3]} 60. Kg3 {[%clk 0:00:06.4]} 60... Rf2 {[%clk 0:00:01]} 61. h6 {[%clk
0:00:06.7]} 61... Rf1 {[%clk 0:00:01.4]} 62. Kh2 {[%clk 0:00:05.8]} 1-0